bitfinex-derivatives/quotes_BTCF0:USTF0_20250207
["timestamp","ask_amount","ask_price","bid_price","bid_amount"]
[1738948027263,0.00153226,97968.0,97964.0,0.3608]
[1738948027559,0.00153226,97968.0,97967.0,0.3608]
[1738948028158,0.00153226,97968.0,97957.0,0.3608]
[1738948028359,0.00153226,97968.0,97965.0,0.3608]
[1738948028559,0.00453226,97968.0,97965.0,0.3608]
[1738948028768,0.001,97963.0,97957.0,0.3608]
[1738948029153,0.00453226,97968.0,97957.0,0.3608]
[1738948029353,0.2040053,97993.0,97967.0,0.3608]
[1738948029555,0.1,98000.0,97975.0,0.3608]
[1738948029751,0.1,98000.0,97983.0,0.3608]
[1738948030060,0.1,98000.0,97993.0,0.3608]
[1738948030268,0.1,98000.0,97983.0,0.3608]
[1738948030466,0.1,98000.0,97992.0,0.3608]
[1738948030664,0.1,98000.0,97983.0,0.3608]
[1738948030867,0.009,97995.0,97983.0,0.3608]
[1738948031070,0.2040099,97991.0,97983.0,0.3608]
[1738948031265,0.009,97995.0,97983.0,0.3608]
[1738948031569,0.009,97993.0,97992.0,0.3608]
[1738948031756,0.009,97993.0,97981.0,0.0692]
[1738948031757,0.009,97993.0,97983.0,0.3608]
[1738948031956,0.2040164,97988.0,97979.0,0.00015308]
[1738948032158,0.009,97993.0,97983.0,0.001]
[1738948032667,0.3608,97984.0,97983.0,0.001]
[1738948033076,0.2040226,97985.0,97983.0,0.001]
[1738948033259,0.5648226,97985.0,97983.0,0.001]
[1738948033568,0.009,97993.0,97983.0,0.001]
[1738948033959,0.2040237,97984.0,97979.0,0.00015308]
[1738948034268,0.2040304,97981.0,97979.0,0.00015308]
[1738948034465,0.204065,97965.0,97963.0,0.00153117]
[1738948035071,0.204047,97973.0,97963.0,0.00153117]
[1738948035264,0.3608,97978.0,97963.0,0.00153117]
[1738948035466,0.2040551,97969.0,97963.0,0.00153117]
[1738948035864,0.3608,97970.0,97963.0,0.00153117]
[1738948036564,0.3608,97977.0,97963.0,0.00153117]
[1738948036759,0.3608,97977.0,97971.0,0.2040488]
[1738948036963,0.3608,97977.0,97963.0,0.001]
[1738948037163,0.3608,97968.0,97963.0,0.001]
[1738948037358,0.3608,97968.0,97961.0,0.00015308]
[1738948037563,0.3608,97968.0,97936.0,0.204122]
[1738948037861,0.3608,97956.0,97942.0,0.00153155]
[1738948038270,0.3608,97943.0,97942.0,0.00153155]
[1738948038469,0.3608,97966.0,97942.0,0.00153155]
[1738948038676,0.2040749,97960.0,97943.0,0.2041081]
[1738948038860,0.007,97956.0,97944.0,0.3608]
[1738948039059,0.007,97956.0,97955.0,0.3608]
[1738948039370,0.2040172,97988.0,97967.0,0.2040575]
[1738948039567,0.2040342,97979.0,97968.0,0.3608]
[1738948039765,0.2040502,97972.0,97964.0,0.3608]
[1738948039971,0.2040281,97982.0,97966.0,0.3608]
[1738948040276,0.3608,97982.0,97966.0,0.3608]
[1738948040667,0.3608,97971.0,97964.0,0.00015308]
[1738948040976,0.00015252,97984.0,97966.0,0.3608]
[1738948041171,0.018,97982.0,97980.0,0.2040302]
[1738948041665,0.017,97982.0,97980.0,0.2040302]
[1738948042174,0.017,97982.0,97981.0,0.3608]
[1738948042572,0.1,98000.0,97981.0,0.3608]
[1738948042768,0.1,98000.0,97999.0,0.3608]
[1738948043667,0.1,98000.0,97998.0,0.3608]
[1738948043864,0.2039967,97997.0,97995.0,0.06884]
[1738948044164,0.2039967,97997.0,97981.0,0.3618]
[1738948044165,0.2040092,97991.0,97990.0,8e-08]
[1738948044362,0.3608,97991.0,97962.0,0.00088]
[1738948044578,0.3608,97979.0,97956.0,0.3608]
[1738948044768,0.3608,97991.0,97964.0,0.3608]
[1738948044964,0.2040215,97986.0,97970.0,0.27833066]
[1738948045169,0.007,97997.0,97964.0,0.3608]
[1738948045371,0.3608,97983.0,97972.0,0.3608]
[1738948045577,0.3608,97991.0,97980.0,0.3608]
[1738948045780,0.00015308,97990.0,97980.0,0.3608]
[1738948046185,0.2040211,97986.0,97980.0,0.3608]
[1738948046374,0.00015308,97990.0,97980.0,0.3608]
[1738948046571,0.00015308,97990.0,97988.0,0.3608]
[1738948046773,0.10015308,97990.0,97988.0,0.3608]
[1738948047077,0.10015308,97990.0,97988.0,0.5648136]
[1738948047277,0.10015308,97990.0,97988.0,0.3608]
[1738948047673,0.10015308,97990.0,97989.0,0.2040133]
[1738948047878,0.1,98000.0,97989.0,0.2040129]
[1738948048077,0.2039298,98030.0,97999.0,0.3608]
[1738948048273,0.203912,98038.0,98010.0,0.27833066]
[1738948048474,0.2038947,98047.0,98018.0,0.2039524]
[1738948048674,0.00153074,98067.0,98046.0,0.3608]
[1738948048874,0.00153074,98067.0,98057.0,0.3608]
[1738948049575,0.00153074,98067.0,98050.0,0.27833066]
[1738948049881,0.00153074,98067.0,98047.0,0.00015297]
[1738948050075,0.3608,98057.0,98047.0,0.00015297]
[1738948050377,0.36233074,98067.0,98047.0,0.00015297]
[1738948050678,0.3608,98053.0,98047.0,0.00015297]
[1738948050877,0.36433074,98067.0,98047.0,0.00015297]
[1738948050878,0.36493075,98067.0,98047.0,0.00015297]
[1738948051185,0.2038857,98051.0,98047.0,0.00015297]
[1738948051477,0.3608,98059.0,98047.0,0.00015297]
[1738948051783,0.00405075,98067.0,98050.0,0.3608]
[1738948052079,0.00353074,98067.0,98058.0,0.3608]
[1738948053190,0.00153074,98067.0,98058.0,0.3608]
[1738948053772,0.00153074,98067.0,98057.0,0.06824]
[1738948053977,0.00153074,98067.0,98059.0,0.3608]
[1738948054176,0.3608,98094.0,98079.0,0.2038245]
[1738948054376,0.1,98100.0,98083.0,0.3608]
[1738948054785,0.1,98100.0,98084.0,0.2038149]
[1738948054972,0.1,98100.0,98082.0,0.00015297]
[1738948055173,0.2038178,98083.0,98082.0,0.00015297]
[1738948055368,0.5645992,98092.0,98082.0,0.00015297]
[1738948055572,0.3608,98084.0,98082.0,0.00015297]
[1738948055781,0.3608,98092.0,98082.0,0.00015297]
[1738948056077,0.2038053,98090.0,98082.0,0.00015297]
[1738948056483,0.3608,98083.0,98082.0,0.00015297]
[1738948056977,0.3608,98089.0,98082.0,0.00115297]
[1738948057282,0.3608,98089.0,98083.0,0.001]
[1738948057581,0.002,98092.0,98083.0,0.001]
[1738948057780,0.3608,98097.0,98084.0,0.2038157]
[1738948057984,0.3608,98097.0,98082.0,0.00015297]
[1738948057985,0.007,98083.0,98082.0,0.00215297]
[1738948058178,0.007,98083.0,98082.0,0.20597287]
[1738948058578,0.3037827,98100.0,98082.0,0.20497287]
[1738948058774,0.007,98089.0,98083.0,0.001]
[1738948059485,0.007,98089.0,98083.0,0.002]
[1738948059982,0.2038157,98084.0,98083.0,0.002]
[1738948060181,0.005,98083.0,98082.0,0.00115297]
[1738948061385,0.2058157,98084.0,98082.0,0.00115297]
[1738948061386,0.002,98084.0,98083.0,0.001]
[1738948062977,0.002,98084.0,98082.0,0.00015297]
[1738948063176,0.2088178,98083.0,98082.0,0.00015297]
[1738948063484,0.2108178,98083.0,98082.0,0.00015297]
[1738948063676,0.2058178,98083.0,98082.0,0.00015297]
[1738948064085,0.2038178,98083.0,98082.0,0.00015297]
[1738948064283,0.002,98084.0,98082.0,0.20397287]
[1738948064481,0.005,98083.0,98082.0,0.20397287]
[1738948064890,0.005,98083.0,98082.0,0.21102745]
[1738948065090,0.2037633,98110.0,98092.0,0.2037988]
[1738948065282,0.2037633,98110.0,98090.0,0.27833066]
[1738948065489,0.2037717,98106.0,98090.0,0.48213356]
[1738948065685,0.3608,98111.0,98091.0,0.2038004]
[1738948065896,0.3608,98095.0,98087.0,0.3608]
[1738948066085,0.3608,98097.0,98087.0,0.3608]
[1738948066504,0.3608,98111.0,98093.0,0.2037961]
[1738948066687,0.3608,98111.0,98094.0,0.2037942]
[1738948066887,0.102,98100.0,98099.0,0.3608]
[1738948067199,0.00152964,98117.0,98100.0,0.2037816]
[1738948067395,0.20527684,98117.0,98100.0,0.48211226]
[1738948067895,0.2037591,98112.0,98100.0,0.27833066]
[1738948068089,0.2037708,98106.0,98097.0,0.06744]
[1738948068290,0.2037561,98113.0,98097.0,0.06744]
[1738948068585,0.00152964,98117.0,98100.0,0.27833066]
[1738948068792,0.2037502,98116.0,98100.0,0.27833066]
[1738948068990,0.3608,98111.0,98100.0,0.27833066]
[1738948069400,0.3608,98111.0,98103.0,0.2037751]
[1738948069997,0.2037783,98102.0,98100.0,0.003]
[1738948070203,0.2037783,98102.0,98100.0,0.004]
[1738948070393,0.2037783,98102.0,98100.0,0.001]
[1738948070785,0.3608,98103.0,98072.0,0.06724]
[1738948070986,0.3608,98084.0,98080.0,0.00702972]
[1738948071186,0.3608,98084.0,98072.0,0.06724]
[1738948071187,0.2038178,98083.0,98072.0,0.06724]
[1738948071387,0.3608,98083.0,98074.0,0.2038364]
[1738948071600,0.3608,98092.0,98070.0,0.27833066]
[1738948071798,0.5646174,98084.0,98063.0,0.2038583]
[1738948071997,0.2038021,98091.0,98074.0,0.203835]
[1738948072300,0.3608,98104.0,98091.0,0.2038]
[1738948072689,0.5294,98110.0,98099.0,0.2037827]
[1738948072895,0.5294,98110.0,98090.0,0.27833066]
[1738948073095,0.5294,98110.0,98092.0,0.2037984]
[1738948073311,0.5294,98110.0,98093.0,0.2037961]
[1738948073312,0.3608,98101.0,98093.0,0.2037961]
[1738948073487,0.53000001,98110.0,98091.0,0.2037995]
[1738948073800,0.3608,98101.0,98091.0,0.2037995]
[1738948074093,0.3608,98101.0,98091.0,0.2047995]
[1738948074300,0.3608,98107.0,98098.0,0.2037846]
[1738948074698,0.3608,98107.0,98091.0,0.001]
[1738948074901,0.3608,98107.0,98099.0,0.2037833]
[1738948075198,0.3608,98107.0,98096.0,0.2037905]
[1738948075698,0.3608,98107.0,98103.0,0.2037744]
[1738948075906,0.56510591,98118.0,98102.0,0.2037766]
[1738948076098,0.36136001,98118.0,98091.0,0.3638]
[1738948076293,0.3608,98110.0,98091.0,0.003]
[1738948076494,0.3608,98110.0,98091.0,0.001]
[1738948076695,0.3608,98110.0,98101.0,0.2037791]
[1738948076894,0.3608,98110.0,98096.0,0.004]
[1738948077207,0.3608,98110.0,98102.0,0.004]
[1738948077505,0.050945,98102.0,98060.0,0.1795744]
[1738948077808,0.5646178,98083.0,98082.0,1e-08]
[1738948078302,0.8646178,98083.0,98082.0,1e-08]
[1738948078707,0.2038698,98058.0,98057.0,0.18076593]
[1738948078897,0.5646698,98058.0,98057.0,0.18076593]
[1738948079601,0.3608,98058.0,98057.0,0.38463783]
[1738948079995,0.5646593,98064.0,98057.0,0.18076593]
[1738948080306,0.00015259,98067.0,98064.0,0.2038573]
[1738948080806,0.2038694,98059.0,98057.0,0.18276593]
[1738948081106,0.2038694,98059.0,98057.0,0.18776593]
[1738948081405,0.3608,98058.0,98057.0,0.18776593]
[1738948081604,0.3608,98058.0,98057.0,0.18576593]
[1738948081994,0.00015259,98067.0,98057.0,0.18576593]
[1738948082196,0.00015259,98067.0,98063.0,0.2038592]
[1738948082398,0.2038531,98066.0,98064.0,0.004]
[1738948082596,0.00015259,98067.0,98064.0,0.004]
[1738948083201,0.00015259,98067.0,98066.0,0.2038531]
[1738948083399,0.00015259,98067.0,98063.0,0.001]
[1738948083800,0.00015259,98067.0,98065.0,0.2038536]
[1738948084112,0.00015259,98067.0,98064.0,0.002]
[1738948084299,0.00015259,98067.0,98064.0,0.004]
[1738948084300,0.2038546,98066.0,98064.0,0.004]
[1738948084497,0.3608,98065.0,98064.0,0.004]
[1738948084699,0.7216,98065.0,98064.0,0.002]
[1738948084902,0.3608,98065.0,98064.0,0.002]
[1738948085202,0.00215259,98067.0,98065.0,0.2038552]
[1738948085402,0.00215259,98067.0,98064.0,0.002]
[1738948086111,0.00215259,98067.0,98066.0,0.2038531]
[1738948086410,0.00315259,98067.0,98066.0,0.2038531]
[1738948086598,0.00153037,98078.0,98064.0,0.06672]
[1738948086801,0.3608,98102.0,98081.0,0.2038199]
[1738948086996,0.3608,98102.0,98085.0,0.2038133]
[1738948087202,0.3608,98102.0,98086.0,0.06676]
[1738948087602,0.13621265,98087.0,98086.0,0.06676]
[1738948087797,0.36136001,98120.0,98086.0,0.06676]
[1738948087798,0.36136001,98120.0,98086.0,0.24056]
[1738948088009,0.3608,98120.0,98100.0,0.3608]
[1738948088205,0.56510141,98120.0,98100.0,0.3608]
[1738948088505,0.36188002,98120.0,98100.0,0.3608]
[1738948088717,0.36132001,98120.0,98109.0,0.2037627]
[1738948089010,0.36132001,98120.0,98107.0,0.06664]
[1738948089198,0.00052001,98120.0,98111.0,0.5645592]
[1738948089400,0.3608,98129.0,98111.0,0.3608]
[1738948089905,0.3608,98129.0,98115.0,0.2037501]
[1738948090106,0.00452964,98117.0,98115.0,0.2037501]
[1738948090500,0.00152964,98117.0,98115.0,0.2037501]
[1738948090701,0.00452964,98117.0,98115.0,0.2037501]
[1738948091599,0.00452964,98117.0,98115.0,0.2115407]
[1738948091912,0.15167549,98135.0,98134.0,0.2037119]
[1738948092211,0.15167549,98135.0,98134.0,0.6307119]
[1738948092606,0.15167549,98135.0,98134.0,0.5645119]
[1738948092802,0.15167549,98135.0,98134.0,0.6306319]
[1738948093106,0.15167549,98135.0,98134.0,0.6316319]
[1738948093410,0.23634611,98158.0,98151.0,0.2036766]
[1738948093910,0.00152893,98167.0,98157.0,0.2036642]
[1738948094101,0.00152893,98167.0,98166.0,0.5644455]
[1738948094306,0.20715985,98198.0,98179.0,0.2036175]
[1738948094507,0.20775986,98198.0,98179.0,0.2036175]
[1738948094806,0.20775986,98198.0,98179.0,0.06608]
[1738948094807,0.20715985,98198.0,98179.0,0.06608]
[1738948095106,0.20715985,98198.0,98185.0,0.3608]
[1738948095511,0.20715985,98198.0,98189.0,0.3608]
[1738948095711,0.08809682,98190.0,98189.0,0.42692]
[1738948096009,0.08809682,98190.0,98189.0,0.06612]
[1738948096311,0.08809682,98190.0,98187.0,0.36844843]
[1738948096718,0.2035999,98189.0,98187.0,0.36844843]
[1738948096906,0.08809682,98190.0,98187.0,0.36844843]
[1738948098499,0.08809682,98190.0,98187.0,0.00764843]
[1738948098705,0.08809682,98190.0,98182.0,0.06608]
[1738948098908,0.08809682,98190.0,98178.0,0.00015281]
[1738948098909,0.3608,98187.0,98183.0,0.06592]
[1738948099823,0.08809682,98190.0,98184.0,0.3608]
[1738948100018,0.08809682,98190.0,98188.0,0.2035988]
[1738948100819,0.06451636,98190.0,98188.0,0.2035988]
[1738948101109,0.06451636,98190.0,98184.0,0.3608]
[1738948101704,0.06451636,98190.0,98189.0,0.2035978]
[1738948102321,0.06451636,98190.0,98184.0,0.36855632]
[1738948102813,0.3608,98189.0,98184.0,0.00775632]
[1738948103011,0.3608,98189.0,98178.0,0.00015281]
[1738948103213,0.06451636,98190.0,98180.0,0.2036148]
[1738948103519,0.06451636,98190.0,98188.0,0.2035994]
[1738948104021,0.1,98200.0,98199.0,0.2035772]
[1738948104223,0.1,98200.0,98199.0,0.6296972]
[1738948104419,0.1,98200.0,98199.0,0.42612]
[1738948104611,0.1,98200.0,98199.0,0.06532]
[1738948105228,0.08365647,98200.0,98199.0,0.06512]
[1738948105825,0.08465647,98200.0,98199.0,0.06512]
[1738948107116,0.08465647,98200.0,98194.0,0.06488]
[1738948107613,0.08465647,98200.0,98194.0,0.07270189]
[1738948108119,0.08465647,98200.0,98194.0,0.00782189]
[1738948108323,0.08465647,98200.0,98188.0,0.06476]
[1738948108623,0.3608,98194.0,98188.0,0.06476]
[1738948109130,0.28823247,98200.0,98188.0,0.06476]
[1738948109523,0.2035783,98199.0,98188.0,0.06476]
[1738948109719,0.08465647,98200.0,98188.0,0.06476]
[1738948109920,0.3608,98194.0,98188.0,0.06476]
[1738948110121,0.5643882,98194.0,98188.0,0.06476]
[1738948110321,0.2035926,98192.0,98187.0,0.00788088]
[1738948110626,0.2036187,98179.0,98178.0,0.00015281]
[1738948110930,0.3608,98179.0,98154.0,0.0648]
[1738948111231,0.2036244,98177.0,98161.0,0.2036559]
[1738948111421,0.203626,98176.0,98160.0,0.17935541]
[1738948111620,0.3608,98178.0,98169.0,0.3608]
[1738948112124,0.00015227,98183.0,98173.0,0.2036309]
[1738948112328,0.00015227,98183.0,98181.0,0.2036128]
[1738948113832,0.00015227,98183.0,98182.0,0.06476]
[1738948115218,0.00115227,98183.0,98182.0,0.06476]
[1738948115617,0.08365647,98200.0,98182.0,0.06476]
[1738948115934,0.08365647,98200.0,98198.0,0.2035787]
[1738948116630,0.08365647,98200.0,98199.0,0.3608]
[1738948116828,0.08350366,98200.0,98199.0,0.3608]
[1738948117328,0.08350366,98200.0,98189.0,0.36095281]
[1738948117329,0.08350366,98200.0,98193.0,0.06436]
[1738948117728,0.08350366,98200.0,98193.0,0.07217049]
[1738948118529,0.28707976,98200.0,98193.0,0.07217049]
[1738948118825,0.08350366,98200.0,98199.0,0.2035772]
[1738948119226,0.08350366,98200.0,98193.0,0.07217049]
[1738948119639,0.08350366,98200.0,98194.0,0.2035859]
[1738948119821,0.08350366,98200.0,98193.0,0.07217049]
[1738948120629,0.08350366,98200.0,98198.0,0.2035785]
[1738948121331,0.203584,98196.0,98193.0,0.07217049]
[1738948121633,0.3608,98197.0,98193.0,0.07217049]
[1738948122432,0.2035956,98191.0,98189.0,0.00015281]
[1738948122832,0.1765,98190.0,98189.0,0.00015281]
[1738948123130,0.2036187,98179.0,98178.0,0.18076593]
[1738948123326,0.5644187,98179.0,98178.0,0.18076593]
[1738948123526,0.5644187,98179.0,98174.0,0.24088368]
[1738948123527,0.203627,98175.0,98174.0,0.24088368]
[1738948124630,0.203627,98175.0,98174.0,0.17083109]
[1738948125226,0.3608,98177.0,98174.0,0.17083109]
[1738948125534,0.3608,98177.0,98175.0,0.2036258]
[1738948125828,0.3608,98177.0,98174.0,0.17083109]
[1738948125829,0.2036249,98176.0,98174.0,0.17083109]
[1738948126232,0.1757,98175.0,98174.0,0.17083109]
[1738948126734,0.1757,98175.0,98165.0,0.20379901]
[1738948126931,0.3608,98167.0,98165.0,0.00015281]
[1738948127129,0.5644447,98167.0,98165.0,0.00015281]
[1738948127632,0.2036628,98158.0,98153.0,0.00790737]
[1738948127829,0.3608,98155.0,98140.0,0.91458416]
[1738948128133,0.2036762,98152.0,98141.0,0.2036955]
[1738948128331,0.3608,98147.0,98141.0,0.2036955]
[1738948128834,0.3608,98147.0,98140.0,0.31265869]
[1738948129143,0.2036975,98141.0,98140.0,0.31169869]
[1738948129523,0.2036975,98141.0,98140.0,0.30402416]
[1738948131131,0.3608,98147.0,98134.0,0.00015281]
[1738948131332,0.3608,98137.0,98134.0,0.00015281]
[1738948131539,0.2037097,98136.0,98134.0,0.00015281]
[1738948132232,0.3608,98147.0,98137.0,0.2037042]
[1738948132438,0.3608,98147.0,98145.0,0.2036878]
[1738948132638,0.00015281,98154.0,98140.0,0.3608]
[1738948132834,0.00015281,98154.0,98152.0,0.2036733]
[1738948133829,0.00015281,98154.0,98145.0,0.06452]
[1738948134134,0.00015281,98154.0,98153.0,0.2036726]
[1738948134730,0.15188333,98176.0,98166.0,0.2036448]
[1738948135044,0.15188333,98176.0,98169.0,0.2036385]
[1738948135724,0.15188333,98176.0,98167.0,0.06448]
[1738948135928,0.15188333,98176.0,98170.0,0.3608]
[1738948136137,0.15188333,98176.0,98169.0,0.002]
[1738948136935,0.15188333,98176.0,98169.0,0.3628]
[1738948137338,0.15188333,98176.0,98170.0,0.2036373]
[1738948137638,0.15188333,98176.0,98169.0,0.3608]
[1738948137842,0.00015281,98180.0,98169.0,0.3608]
[1738948138138,0.00015281,98180.0,98170.0,0.2036373]
[1738948138139,0.00137608,98171.0,98170.0,0.2036373]
[1738948138337,0.08350366,98200.0,98169.0,0.3638]
[1738948138338,0.08350366,98200.0,98179.0,0.2036186]
[1738948138543,0.08350366,98200.0,98184.0,0.3608]
[1738948138733,0.3608,98195.0,98184.0,0.3608]
[1738948138931,0.08350366,98200.0,98184.0,0.3608]
[1738948139136,0.08350366,98200.0,98190.0,0.17929198]
[1738948139335,0.3608,98195.0,98184.0,0.3608]
[1738948139536,0.08350366,98200.0,98184.0,0.3608]
[1738948139735,0.28707956,98200.0,98185.0,0.00015281]
[1738948139937,0.3608,98197.0,98185.0,0.00015281]
[1738948140339,0.3608,98189.0,98185.0,0.00015281]
[1738948140537,0.2036016,98188.0,98185.0,0.00015281]
[1738948140741,0.3608,98189.0,98185.0,0.00015281]
[1738948141044,0.3608,98197.0,98185.0,0.00015281]
[1738948141244,0.3608,98197.0,98187.0,0.17929198]
[1738948141446,0.2036041,98186.0,98185.0,0.00015281]
[1738948142036,0.3608,98189.0,98185.0,0.00015281]
[1738948142537,0.2036041,98186.0,98185.0,0.00015281]
[1738948143435,0.2036392,98170.0,98162.0,0.06452]
[1738948143632,0.3608,98165.0,98162.0,0.07271226]
[1738948144038,0.3608,98165.0,98163.0,0.2036506]
[1738948144840,0.3608,98165.0,98154.0,0.00015281]
[1738948145145,0.3608,98165.0,98163.0,0.002]
[1738948145448,0.2036498,98164.0,98163.0,0.002]
[1738948145643,0.3608,98165.0,98154.0,0.21218059]
[1738948145944,0.2036498,98164.0,98163.0,0.002]
[1738948146335,0.2036596,98160.0,98154.0,0.00015281]
[1738948146538,0.3608,98155.0,98154.0,0.00015281]
[1738948147445,0.3608,98164.0,98154.0,0.00015281]
[1738948147750,0.3608,98164.0,98160.0,0.2036578]
[1738948147934,0.3608,98164.0,98154.0,0.00015281]
[1738948148133,0.3608,98155.0,98154.0,0.00215281]
[1738948148935,0.2036664,98156.0,98154.0,0.00215281]
[1738948149550,0.3315,98158.0,98136.0,0.06444]
[1738948149744,0.3315,98158.0,98143.0,0.2036919]
[1738948149745,0.2036781,98151.0,98143.0,0.2036919]
[1738948149940,0.3608,98146.0,98143.0,0.2036919]
[1738948150344,0.3608,98159.0,98130.0,0.18749671]
[1738948150546,0.3608,98166.0,98165.0,0.2036477]
[1738948150746,0.15188333,98174.0,98173.0,0.2036311]
[1738948151643,0.17953695,98180.0,98179.0,0.2036187]
[1738948151842,0.17953695,98180.0,98179.0,0.2677787]
[1738948152752,0.17953695,98180.0,98173.0,0.37307735]
[1738948152954,0.3608,98179.0,98173.0,0.01227735]
[1738948153248,0.3608,98179.0,98173.0,0.01627735]
[1738948153454,0.3608,98179.0,98173.0,0.008]
[1738948153657,0.3608,98183.0,98173.0,0.008]
[1738948153951,0.3608,98183.0,98173.0,0.18329198]
[1738948154154,0.3608,98183.0,98177.0,0.2036216]
[1738948154358,0.3608,98183.0,98173.0,0.001]
[1738948154657,0.3608,98183.0,98173.0,0.003]
[1738948154851,0.203614,98182.0,98173.0,0.003]
[1738948155050,0.36132001,98183.0,98175.0,0.2036269]
[1738948155250,0.00015281,98189.0,98173.0,0.18129198]
[1738948155559,0.00015281,98189.0,98187.0,0.203602]
[1738948157450,0.15176681,98197.0,98185.0,0.3608]
[1738948157654,0.00152818,98214.0,98199.0,0.2035772]
[1738948157842,0.00152818,98214.0,98199.0,0.2677772]
[1738948159059,0.08319804,98200.0,98199.0,0.2677772]
[1738948160857,0.00152818,98214.0,98199.0,0.0642]
[1738948161061,0.00152818,98214.0,98206.0,0.3608]
[1738948161264,0.00152818,98214.0,98213.0,0.2035482]
[1738948164362,0.36232818,98214.0,98213.0,0.00816971]
[1738948164564,0.36232818,98214.0,98213.0,0.001]
[1738948167363,0.66232818,98214.0,98190.0,0.00015281]
[1738948167574,0.3608,98194.0,98190.0,0.00015281]
[1738948167766,0.3608,98194.0,98191.0,0.2035927]
[1738948168977,0.3608,98194.0,98191.0,0.2045927]
[1738948169369,0.3608,98194.0,98191.0,0.001]
[1738948169565,0.3608,98194.0,98192.0,0.2035917]
[1738948169773,0.3608,98194.0,98193.0,0.2035886]
[1738948170177,0.001,98194.0,98193.0,0.2035886]
[1738948170967,0.002,98194.0,98193.0,0.2035886]
[1738948171178,0.002,98194.0,98191.0,0.001]
[1738948171376,0.002,98194.0,98190.0,0.00845249]
[1738948171573,0.3628,98194.0,98190.0,0.00845249]
[1738948172570,0.2035927,98192.0,98190.0,0.00845249]
[1738948173070,0.3608,98191.0,98190.0,0.00015281]
[1738948173275,0.2036258,98176.0,98164.0,0.38294008]
[1738948173477,0.3608,98166.0,98164.0,0.17929198]
[1738948173683,0.3608,98166.0,98165.0,0.2036477]
[1738948173875,0.001,98194.0,98165.0,0.3708]
[1738948174074,0.3552,98235.0,98193.0,0.3608]
[1738948174272,0.16776751,98222.0,98221.0,0.3608]
[1738948174583,0.36140001,98253.0,98221.0,0.3608]
[1738948174584,0.1765,98252.0,98230.0,0.2035121]
[1738948174780,0.00015254,98231.0,98230.0,0.5643121]
[1738948175083,0.00015254,98231.0,98226.0,0.17929198]
[1738948175283,0.36095254,98231.0,98226.0,0.17929198]
[1738948175479,0.2035154,98229.0,98226.0,0.17929198]
[1738948175676,0.36147255,98231.0,98226.0,0.17929198]
[1738948175879,0.36095254,98231.0,98226.0,0.17929198]
[1738948176182,0.00015254,98231.0,98226.0,0.17929198]
[1738948176789,0.3608,98228.0,98223.0,0.00015273]
[1738948176990,0.2035349,98220.0,98195.0,0.2035837]
[1738948177281,0.3608,98216.0,98203.0,0.00832963]
[1738948177583,0.3608,98216.0,98205.0,0.2035647]
[1738948177786,0.2035391,98218.0,98208.0,0.203557]
[1738948177988,0.329,98219.0,98201.0,0.00805825]
[1738948178175,0.329,98219.0,98204.0,0.00015273]
[1738948178789,0.3608,98217.0,98205.0,0.2035641]
[1738948179276,0.329,98219.0,98204.0,0.00015273]
[1738948179686,0.2035425,98216.0,98204.0,0.00015273]
[1738948179882,0.2035425,98216.0,98209.0,0.003]
[1738948180084,0.3608,98213.0,98209.0,0.003]
[1738948180392,0.0508877,98212.0,98191.0,0.0082422]
[1738948180695,0.3608,98192.0,98138.0,0.3608]
[1738948180891,0.3608,98172.0,98156.0,0.3608]
[1738948181090,0.3608,98181.0,98167.0,0.3608]
[1738948181389,0.5644152,98181.0,98167.0,0.3608]
[1738948181593,0.2036169,98180.0,98167.0,0.564442]
[1738948181890,0.2036232,98177.0,98167.0,0.204882]
[1738948182088,0.2036395,98169.0,98165.0,0.00015273]
[1738948182788,0.36132001,98170.0,98165.0,0.00015273]
[1738948182995,0.2036267,98176.0,98165.0,0.00015273]
[1738948183190,0.17929198,98180.0,98165.0,0.00015273]
[1738948183191,0.3608,98172.0,98168.0,0.36614779]
[1738948183389,0.2046395,98169.0,98168.0,0.003]
[1738948183888,0.2036456,98166.0,98165.0,0.00015273]
[1738948184591,0.2036456,98166.0,98135.0,0.3608]
[1738948184592,0.0509137,98162.0,98135.0,0.5645093]
[1738948184792,0.3608,98157.0,98135.0,0.5645093]
[1738948184990,0.2036907,98145.0,98135.0,0.5645093]
[1738948185180,0.36132001,98157.0,98135.0,0.36902067]
[1738948185385,0.2037066,98137.0,98135.0,0.36902067]
[1738948185582,0.2037066,98137.0,98136.0,0.00015282]
[1738948186889,0.2037066,98137.0,98136.0,0.00915282]
[1738948187197,0.2037066,98137.0,98136.0,0.01815282]
[1738948187993,0.00056001,98141.0,98122.0,0.0015286]
[1738948188182,0.3398,98147.0,98122.0,0.0015286]
[1738948188183,0.3398,98147.0,98128.0,0.3608]
[1738948188389,0.2037151,98133.0,98128.0,0.2037241]
[1738948188589,0.2037212,98130.0,98128.0,0.2037241]
[1738948188994,0.2037018,98139.0,98134.0,0.2037107]
[1738948189195,0.1631,98147.0,98136.0,0.2037071]
[1738948189389,0.2037153,98133.0,98129.0,0.2037222]
[1738948190397,0.2037153,98133.0,98128.0,0.004]
[1738948190695,0.00015282,98146.0,98128.0,0.004]
[1738948190696,0.203722,98130.0,98128.0,0.004]
[1738948190889,0.2037117,98135.0,98129.0,0.002]
[1738948191084,0.2037117,98135.0,98130.0,0.2037198]
[1738948191487,0.2037117,98135.0,98129.0,0.002]
[1738948191488,0.2037146,98133.0,98129.0,0.002]
[1738948191681,0.203719,98131.0,98129.0,0.004]
[1738948192895,0.00052001,98138.0,98129.0,0.002]
[1738948193086,0.2037123,98134.0,98129.0,0.002]
[1738948193696,0.2037184,98131.0,98129.0,0.002]
[1738948193891,0.5645184,98131.0,98129.0,0.004]
[1738948195097,0.2037411,98120.0,98109.0,0.2037624]
[1738948195298,0.2037411,98120.0,98104.0,0.1666]
[1738948196000,0.2037411,98120.0,98109.0,0.2037625]
[1738948196389,0.2057411,98120.0,98119.0,0.01315282]
[1738948197500,0.2057411,98120.0,98114.0,1e-08]
[1738948197501,0.2037515,98115.0,98114.0,1e-08]
[1738948197796,0.2037515,98115.0,98074.0,0.82473969]
[1738948197797,0.2037806,98101.0,98080.0,0.3812231]
[1738948198095,0.3608,98101.0,98080.0,0.1774]
[1738948198299,0.3608,98101.0,98099.0,0.203783]